bitfinex/quotes_SOLUSD_20250410
["timestamp","ask_amount","ask_price","bid_price","bid_amount"]
[1744303895510,9.1517,109.63,109.59,35.0620163]
[1744303895712,44.2137163,109.63,109.59,35.0620163]
[1744303896211,44.2136163,109.63,109.6,15.8]
[1744303896389,35.0620163,109.62,109.6,15.8]
[1744303896590,44.2136163,109.63,109.6,15.8]
[1744303896790,9.1516,109.63,109.6,15.8]
[1744303897207,0.03,109.63,109.6,155.17431144]
[1744303897416,0.03,109.63,109.62,45.07613357]
[1744303897708,0.03,109.63,109.62,156.25031144]
[1744303898092,0.03,109.63,109.62,121.18829514]
[1744303898305,0.03,109.63,109.62,76.25432314]
[1744303898515,0.03,109.63,109.62,111.31633944]
[1744303899008,0.03,109.63,109.61,0.14216157]
[1744303899207,0.03,109.63,109.61,35.20417787]
[1744303899517,0.03,109.63,109.6,441.89733357]
[1744303899518,0.03,109.63,109.6,405.09216157]
[1744303899725,0.03,109.63,109.6,440.15417787]
[1744303900224,0.03,109.63,109.6,405.09216157]
[1744303900424,0.03,109.63,109.6,440.15417787]
[1744303900611,0.03,109.63,109.61,35.0620163]
[1744303901197,0.03,109.63,109.61,0.14216157]
[1744303901513,0.03,109.63,109.61,35.0620163]
[1744303901939,0.03,109.63,109.61,35.20417787]
[1744303902432,0.03,109.63,109.62,35.0620163]
[1744303902595,0.03,109.65,109.63,76.08216157]
[1744303902796,0.03,109.65,109.64,124.32086617]
[1744303903212,0.03,109.67,109.65,19.07613357]
[1744303903419,0.03,109.67,109.66,69.85814987]
[1744303903624,0.03,109.67,109.66,145.94031144]
[1744303904928,0.03,109.67,109.66,119.99729514]
[1744303905230,0.03,109.67,109.66,155.05931144]
[1744303905417,0.03,109.68,109.67,19.07613357]
[1744303905619,0.03,109.68,109.67,54.13814987]
[1744303906998,0.03,109.68,109.67,63.25634987]
[1744303907228,0.03,109.68,109.67,54.13814987]
[1744303907418,0.03,109.68,109.67,63.25634987]
[1744303908410,0.03,109.74,109.71,0.14216157]
[1744303908628,0.03,109.74,109.73,35.0620163]
[1744303908928,0.03,109.74,109.72,15.72]
[1744303909139,35.0620163,109.73,109.72,15.72]
[1744303909307,0.03,109.74,109.68,27.90911043]
[1744303909637,0.03,109.74,109.69,0.28432314]
[1744303909807,0.03,109.74,109.7,35.0620163]
[1744303910133,0.03,109.74,109.71,35.0620163]
[1744303910330,0.03,109.74,109.72,35.20417787]
[1744303910625,0.03,109.74,109.71,76.05216157]
[1744303910822,0.03,109.74,109.71,111.11417787]
[1744303911011,0.03,109.74,109.71,76.05216157]
[1744303911212,0.03,109.74,109.71,111.11417787]
[1744303911430,35.0920163,109.74,109.71,76.05216157]
[1744303911725,35.0920163,109.74,109.7,35.0620163]
[1744303911944,0.03,109.74,109.73,35.0620163]
[1744303912497,0.03,109.74,109.73,35.20417787]
[1744303913124,0.03,109.74,109.73,35.25536157]
[1744303913323,0.03,109.74,109.73,171.89031144]
[1744303913630,0.03,109.74,109.73,181.00351144]
[1744303913836,0.03,109.74,109.73,152.95633944]
[1744303914832,0.03,109.74,109.73,117.89432314]
[1744303915032,0.03,109.74,109.73,152.95633944]
[1744303915338,0.03,109.74,109.73,15.7]
[1744303915537,0.03,109.74,109.73,154.86134987]
[1744303915737,0.03,109.74,109.73,126.95633944]
[1744303915913,0.03,109.74,109.73,119.94149514]
[1744303916117,0.03,109.74,109.73,155.00351144]
[1744303916809,0.03,109.74,109.73,126.95633944]
[1744303917010,0.03,109.74,109.73,15.7]
[1744303917438,0.03,109.74,109.73,50.7620163]
[1744303918013,0.03,109.74,109.73,50.90417787]
[1744303918335,0.03,109.74,109.73,15.7]
[1744303919629,0.03,109.74,109.73,50.90417787]
[1744303920111,0.03,109.74,109.73,15.7]
[1744303920314,35.0920163,109.74,109.69,312.88]
[1744303920533,35.0920163,109.74,109.7,35.0620163]
[1744303920740,35.0920163,109.74,109.69,321.9965]
[1744303920741,35.0620163,109.71,109.65,76.05216157]
[1744303920944,26.0,109.71,109.66,0.12]
[1744303921247,35.0620163,109.69,109.66,0.12]
[1744303921431,44.1786163,109.69,109.64,35.0620163]
[1744303921753,9.1166,109.69,109.64,0.14216157]
[1744303921920,35.0620163,109.67,109.64,0.12]
[1744303922126,38.1652,109.69,109.64,0.12]
[1744303922441,15.3737,109.69,109.64,35.32417787]
[1744303922740,35.0620163,109.68,109.64,35.32417787]
[1744303922937,15.3737,109.69,109.64,0.12]
[1744303922938,35.0620163,109.67,109.64,0.12]
[1744303923439,15.3737,109.69,109.65,35.0620163]
[1744303923440,41.3191163,109.69,109.65,35.0620163]
[1744303923944,41.3191163,109.69,109.64,0.26216157]
[1744303923945,35.0620163,109.66,109.64,0.12]
[1744303924350,35.0620163,109.66,109.61,76.05216157]
[1744303924655,35.0620163,109.62,109.56,15.2256]
[1744303924842,1.509,109.65,109.59,35.0620163]
[1744303925044,35.0620163,109.64,109.6,35.0620163]
[1744303925339,1.509,109.65,109.62,35.20417787]
[1744303925549,9.1186,109.67,109.63,35.0620163]
[1744303925745,9.1174,109.68,109.64,35.0620163]
[1744303925954,35.0620163,109.65,109.61,15.7]
[1744303926248,0.14216157,109.64,109.57,76.05216157]
[1744303926541,35.0620163,109.6,109.57,76.05216157]
[1744303926739,35.0620163,109.61,109.56,50.7620163]
[1744303926969,35.0620163,109.6,109.56,50.7620163]
[1744303927137,35.0620163,109.6,109.56,35.0620163]
[1744303927330,35.0620163,109.6,109.53,0.14216157]
[1744303927331,35.0620163,109.57,109.53,0.14216157]
[1744303927650,35.0620163,109.57,109.52,412.27220195]
[1744303928142,35.0620163,109.57,109.52,433.10767787]
[1744303928352,6.371,109.61,109.56,35.0620163]
[1744303928557,35.0620163,109.61,109.57,35.0620163]
[1744303928853,45.7168163,109.62,109.58,35.0620163]
[1744303929237,1.5321,109.62,109.59,35.0620163]
[1744303929640,15.4913,109.65,109.6,35.0620163]
[1744303929952,35.0620163,109.63,109.58,9.1254]
[1744303930154,15.4913,109.65,109.6,35.0620163]
[1744303930359,35.0620163,109.63,109.59,0.14216157]
[1744303930859,35.0620163,109.63,109.58,44.1874163]
[1744303931041,35.0620163,109.63,109.59,35.0620163]
[1744303931353,44.1839163,109.63,109.58,9.1254]
[1744303931536,9.1211,109.64,109.6,35.0620163]
[1744303931854,9.1211,109.64,109.59,35.0620163]
[1744303932359,1.6605,109.66,109.62,35.0620163]
[1744303932960,1.6605,109.66,109.63,35.0620163]
[1744303933329,45.8417163,109.66,109.62,35.0620163]
[1744303933536,35.0620163,109.65,109.61,116.0620163]
[1744303934051,10.7797,109.66,109.62,35.0620163]
[1744303934448,35.0620163,109.65,109.61,81.0]
[1744303934758,10.7797,109.66,109.62,35.0620163]
[1744303935060,45.8417163,109.66,109.62,35.0620163]
[1744303935246,1.6605,109.66,109.62,35.0620163]
[1744303935557,10.7796,109.66,109.62,35.0620163]
[1744303935760,6.1989,109.69,109.65,35.0620163]
[1744303935960,41.2609163,109.69,109.65,35.0620163]
[1744303936262,41.2609163,109.69,109.63,15.78216157]
[1744303936263,35.0620163,109.68,109.64,35.0620163]
[1744303936435,6.1989,109.69,109.64,35.0620163]
[1744303936639,41.2609163,109.69,109.65,35.0620163]
[1744303936842,1.655,109.7,109.66,0.14216157]
[1744303937038,1.655,109.7,109.67,35.0620163]
[1744303937265,0.03,109.74,109.67,35.0620163]
[1744303937266,10.7344,109.74,109.69,35.0620163]
[1744303937436,10.7344,109.74,109.68,32.76487757]
[1744303937771,45.7964163,109.74,109.69,35.0620163]
[1744303937946,10.7344,109.74,109.7,35.0620163]
[1744303938147,0.03,109.74,109.73,35.0620163]
[1744303938353,0.03,109.74,109.73,35.20417787]
[1744303938752,0.03,109.74,109.73,45.07613357]
[1744303939045,0.03,109.74,109.73,135.13814987]
[1744303939238,0.03,109.74,109.73,116.20417787]
[1744303939448,0.03,109.74,109.73,125.31737787]
[1744303939651,0.03,109.74,109.73,90.25536157]
[1744303939853,0.03,109.74,109.73,142.06714846]
[1744303940168,0.03,109.74,109.73,90.25536157]
[1744303940469,0.03,109.74,109.73,132.95394846]
[1744303940665,0.03,109.74,109.73,142.06714846]
[1744303941147,0.03,109.74,109.73,161.00112046]
[1744303942145,0.03,109.74,109.73,212.81290735]
[1744303942146,0.0001,109.74,109.73,212.81290735]
[1744303942757,0.03,109.76,109.75,26.14216157]
[1744303942954,0.03,109.76,109.75,164.33970735]
[1744303943244,0.0001,109.76,109.75,245.33970735]
[1744303943459,0.03,109.79,109.78,26.14216157]
[1744303943653,0.03,109.79,109.78,186.99702046]
[1744303943955,0.03,109.79,109.78,160.99702046]
[1744303944163,0.03,109.79,109.78,109.18523357]
[1744303944462,0.03,109.79,109.78,160.99702046]
[1744303945756,0.03,109.79,109.78,160.85485889]
[1744303945952,0.03,109.79,109.78,160.71269732]
[1744303946151,0.03,109.79,109.78,160.99702046]
[1744303947583,0.03,109.79,109.78,142.06304846]
[1744303948072,0.03,109.79,109.78,160.99702046]
[1744303948445,0.03,109.79,109.77,9.1099]
[1744303948645,0.03,109.79,109.77,60.92168689]
[1744303948870,0.03,109.79,109.76,90.25256157]
[1744303949075,51.84178689,109.79,109.75,15.64]
[1744303949456,51.81178689,109.78,109.75,15.64]
[1744303949679,51.81178689,109.77,109.75,15.64]
[1744303950471,9.11,109.77,109.75,15.64]
[1744303950670,60.92178689,109.77,109.75,15.64]
[1744303950846,51.81178689,109.76,109.73,84.95051156]
[1744303951048,51.81178689,109.74,109.68,51.81178689]
[1744303951245,51.81178689,109.71,109.69,2.35]
[1744303951575,51.81178689,109.7,109.65,67.45178689]
[1744303951876,51.81178689,109.69,109.65,15.64]
[1744303952175,51.81178689,109.68,109.66,2.35]
[1744303952381,51.81178689,109.67,109.66,2.35]
[1744303952560,51.81178689,109.68,109.66,2.35]
[1744303953261,51.81178689,109.67,109.61,81.14216157]
[1744303953470,51.81178689,109.66,109.62,54.16178689]
[1744303953978,51.81178689,109.67,109.62,63.28408689]
[1744303954151,51.81178689,109.66,109.62,54.16178689]
[1744303954347,51.81178689,109.66,109.62,51.81178689]
[1744303954543,60.93048689,109.67,109.63,51.81178689]
[1744303954763,60.93048689,109.67,109.61,90.1232]
[1744303954764,51.81178689,109.66,109.61,90.1232]
[1744303954972,51.81178689,109.66,109.61,141.93498689]
[1744303955180,51.81178689,109.66,109.62,51.81178689]
[1744303955871,9.1196,109.66,109.62,51.81178689]
[1744303956067,60.93138689,109.66,109.62,51.81178689]
[1744303956560,60.93138689,109.66,109.61,141.93498689]
[1744303956767,51.81178689,109.64,109.61,81.0]
[1744303956967,51.81178689,109.63,109.6,0.063]
[1744303957168,51.81178689,109.62,109.6,0.063]
[1744303957343,51.81178689,109.61,109.6,0.063]
[1744303957975,60.93498689,109.61,109.6,0.063]
[1744303958674,112.74677378,109.61,109.56,15.64]
[1744303958857,51.81178689,109.57,109.56,15.64]
[1744303959056,31.9313,109.61,109.54,0.063]
[1744303959256,51.81178689,109.57,109.54,0.063]
[1744303959557,51.81178689,109.56,109.54,0.063]
[1744303959873,51.81178689,109.57,109.54,0.063]
[1744303960172,51.81178689,109.56,109.54,0.063]
[1744303960675,22.8021,109.64,109.55,0.14216157]
[1744303960843,1.5984,109.65,109.57,18.79181043]
[1744303961048,31.9225,109.64,109.57,51.81178689]
[1744303961265,51.81178689,109.61,109.56,67.41178689]
[1744303961451,51.81178689,109.58,109.56,15.6]
[1744303961844,60.93678689,109.59,109.54,51.87478689]
[1744303962051,51.81178689,109.58,109.54,61.00348689]
[1744303962259,60.93678689,109.59,109.54,61.00348689]
[1744303962460,51.81178689,109.59,109.54,61.00348689]
[1744303963048,51.81178689,109.58,109.54,0.063]
[1744303963357,51.81178689,109.57,109.54,0.063]
[1744303963662,51.81178689,109.58,109.54,0.063]
[1744303963861,51.81178689,109.58,109.54,51.87478689]
[1744303964079,60.93768689,109.58,109.54,51.87478689]
[1744303964271,9.1259,109.58,109.54,51.87478689]
[1744303964456,26.0,109.6,109.56,51.81178689]
[1744303964776,26.0,109.6,109.57,51.81178689]
[1744303964975,9.1226,109.62,109.57,51.81178689]
[1744303965176,51.81178689,109.6,109.55,18.79181043]
[1744303965380,51.81178689,109.61,109.55,18.79181043]
[1744303965558,51.81178689,109.61,109.57,51.81178689]
[1744303965760,51.81178689,109.62,109.58,51.81178689]
[1744303965957,1.5984,109.65,109.6,51.81178689]
[1744303966189,1.5984,109.65,109.61,51.81178689]
[1744303966353,51.81178689,109.64,109.59,70.60359732]
[1744303966557,51.81178689,109.64,109.6,51.81178689]
[1744303966866,62.53008689,109.65,109.61,51.81178689]
[1744303967172,10.7183,109.65,109.59,51.81178689]
[1744303967379,51.81178689,109.64,109.6,51.81178689]
[1744303967663,62.53008689,109.65,109.6,51.81178689]
[1744303967867,62.53008689,109.65,109.61,51.81178689]
[1744303968183,10.7183,109.65,109.59,27.91641043]
[1744303968375,10.7183,109.65,109.6,51.81178689]
[1744303968553,62.53008689,109.65,109.61,51.81178689]
[1744303968759,62.53008689,109.65,109.59,27.91641043]
[1744303969059,62.53008689,109.65,109.61,51.81178689]
[1744303969371,10.7183,109.65,109.6,60.93558689]
[1744303969765,62.53008689,109.65,109.6,60.93558689]
[1744303970371,51.81178689,109.63,109.58,0.14216157]
[1744303970574,51.81178689,109.63,109.59,51.81178689]
[1744303970782,51.81178689,109.63,109.57,96.6]
[1744303970966,85.32988689,109.65,109.58,51.81178689]
[1744303971169,51.81178689,109.63,109.59,51.81178689]
[1744303971377,10.7183,109.65,109.6,51.81178689]
[1744303971673,62.53008689,109.65,109.61,51.81178689]
[1744303972051,51.81178689,109.64,109.6,51.81178689]
[1744303972257,33.5181,109.65,109.59,51.81178689]
[1744303972452,51.81178689,109.64,109.6,51.81178689]
[1744303972677,51.81178689,109.64,109.58,27.91721043]
[1744303972678,51.81178689,109.63,109.58,27.91721043]
[1744303972983,51.81178689,109.63,109.59,51.81178689]
[1744303973189,51.81178689,109.64,109.59,51.81178689]
[1744303973560,60.93328689,109.63,109.58,70.60359732]
[1744303973760,43.75708908,109.64,109.59,34.63598908]
[1744303974164,43.75708908,109.64,109.6,34.63598908]
[1744303974360,1.5984,109.65,109.62,34.63598908]
[1744303974784,1.5984,109.65,109.6,53.42779951]
[1744303974965,1.5984,109.65,109.6,18.79181043]
[1744303975164,1.5984,109.65,109.61,34.63598908]
[1744303975366,1.5984,109.65,109.61,51.92598205]
[1744303975683,62.64438205,109.65,109.61,51.92598205]
[1744303975988,62.64438205,109.65,109.59,9.26686157]
[1744303976166,51.92598205,109.64,109.6,51.92598205]
[1744303976373,51.92598205,109.63,109.58,27.77494886]
[1744303976570,51.92598205,109.64,109.59,51.92598205]
[1744303976759,51.92598205,109.64,109.58,27.77494886]
[1744303976960,51.92598205,109.64,109.59,51.92598205]
[1744303977585,9.1215,109.64,109.6,51.92598205]
[1744303977761,61.04748205,109.64,109.6,51.92598205]
[1744303977961,61.04748205,109.64,109.59,51.92598205]
[1744303980765,51.92598205,109.64,109.6,51.92598205]
[1744303980990,53.52438205,109.65,109.6,51.92598205]
[1744303981189,51.92598205,109.64,109.6,51.92598205]
[1744303981501,51.92598205,109.63,109.59,51.92598205]
[1744303981664,61.04718205,109.64,109.59,51.92598205]
[1744303981868,51.92598205,109.63,109.59,51.92598205]
[1744303982068,51.92598205,109.63,109.58,151.71779248]
[1744303982286,51.92598205,109.63,109.58,132.92598205]
[1744303982480,51.92598205,109.63,109.59,51.92598205]
[1744303982693,51.92598205,109.62,109.58,81.0]
[1744303982987,51.92598205,109.62,109.57,67.52598205]
[1744303983185,51.92598205,109.61,109.57,15.6]
[1744303983372,51.92598205,109.59,109.57,15.6]
[1744303983568,53.51718205,109.58,109.54,0.063]
[1744303983780,9.1274,109.56,109.54,0.063]
[1744303984572,9.127,109.57,109.54,51.98898205]
[1744303984891,1.5912,109.58,109.54,0.20516157]
[1744303985087,10.7171,109.58,109.55,51.92598205]
[1744303985587,53.57818205,109.61,109.56,51.92598205]
[1744303985787,9.1244,109.6,109.55,9.26996157]
[1744303986091,61.05038205,109.6,109.56,51.92598205]
[1744303986294,9.1244,109.6,109.56,51.92598205]
[1744303986487,1.6522,109.61,109.59,51.92598205]
[1744303986686,1.6522,109.61,109.58,51.92598205]
[1744303986886,64.74804886,109.66,109.58,51.92598205]
[1744303986887,33.5445,109.66,109.59,51.92598205]
[1744303987090,51.92598205,109.65,109.61,51.92598205]
[1744303987282,51.92598205,109.65,109.59,0.14216157]
[1744303987483,51.92598205,109.65,109.61,51.92598205]
[1744303987673,62.67278205,109.66,109.61,51.92598205]
[1744303987872,1.6278,109.66,109.62,9.1223]
[1744303988090,1.6278,109.66,109.63,51.92598205]
[1744303988268,10.747,109.66,109.63,51.92598205]
[1744303989093,62.67288205,109.66,109.61,81.0]
[1744303989286,62.67288205,109.66,109.61,132.92598205]
[1744303989593,62.67288205,109.66,109.61,81.0]
[1744303989790,62.67288205,109.66,109.61,142.04908205]
[1744303989997,62.67288205,109.66,109.62,51.92598205]
[1744303990496,62.67288205,109.66,109.61,132.92598205]
[1744303990497,51.92598205,109.65,109.61,132.92598205]
[1744303990790,62.67288205,109.66,109.61,142.04908205]
[1744303990999,51.92598205,109.62,109.58,328.74]
[1744303991304,51.92598205,109.62,109.58,380.66598205]
[1744303991465,51.92598205,109.62,109.58,328.74]
[1744303991795,51.92598205,109.62,109.58,380.66598205]
[1744303992027,51.92598205,109.63,109.58,328.74]
[1744303992305,51.92598205,109.61,109.58,328.74]
[1744303992468,51.92598205,109.59,109.54,9.33386157]
[1744303992669,51.92598205,109.59,109.55,51.92598205]
[1744303993072,53.53678205,109.59,109.54,51.98898205]
[1744303993272,51.92598205,109.58,109.54,0.063]
[1744303993592,51.92598205,109.58,109.54,51.98898205]
[1744303993788,1.6108,109.59,109.55,51.92598205]
[1744303994100,61.04918205,109.61,109.57,51.92598205]
[1744303994471,61.04918205,109.61,109.55,0.14216157]
[1744303994673,61.04918205,109.61,109.57,51.92598205]
[1744303995577,61.04918205,109.61,109.57,34.64445293]
[1744303995578,9.1232,109.61,109.57,34.64445293]
[1744303995794,34.64445293,109.6,109.55,9.26996157]
[1744303996002,34.64445293,109.6,109.56,34.64445293]
[1744303996194,9.1232,109.61,109.58,34.64445293]
[1744303997281,57.44455293,109.65,109.6,34.64445293]
[1744303997475,43.76555293,109.64,109.6,34.64445293]
[1744303997676,9.1211,109.64,109.6,34.64445293]
[1744303998181,43.76555293,109.64,109.6,34.64445293]
[1744303998506,43.76555293,109.64,109.6,43.76815293]
[1744303998507,9.1211,109.64,109.6,43.76815293]
[1744303998682,9.1201,109.65,109.61,34.64445293]
[1744303998891,10.7763,109.66,109.63,34.64445293]
[1744303999188,10.7763,109.66,109.62,34.64445293]
[1744303999695,10.7763,109.66,109.63,34.64445293]
[1744304000399,10.7763,109.66,109.61,34.64445293]
[1744304000400,34.64445293,109.65,109.61,34.64445293]
[1744304000588,9.1207,109.64,109.6,115.64445293]
[1744304000775,9.1207,109.64,109.61,34.64445293]
[1744304000981,9.1207,109.64,109.6,34.64445293]
[1744304001184,66.56695293,109.64,109.58,81.14216157]
[1744304001576,66.56695293,109.64,109.59,34.64445293]
[1744304001799,31.9225,109.64,109.59,34.64445293]
[1744304002014,9.1199,109.65,109.62,34.64445293]
[1744304002180,9.1199,109.65,109.63,34.64445293]
[1744304002382,9.1199,109.65,109.61,0.14216157]
[1744304002602,9.1199,109.65,109.62,34.64445293]
[1744304002798,9.1199,109.65,109.61,0.14216157]
[1744304002988,9.1199,109.65,109.61,34.7866145]
[1744304003380,9.1199,109.65,109.62,34.64445293]
[1744304004495,9.1199,109.65,109.61,34.7866145]
[1744304004904,9.1199,109.65,109.61,0.14216157]
[1744304005110,43.76435293,109.65,109.6,115.64445293]
[1744304005418,34.64445293,109.64,109.6,34.64445293]
[1744304005621,34.64445293,109.62,109.57,29.80654038]
[1744304005917,34.64445293,109.61,109.57,64.45099331]
[1744304006116,6.5013,109.63,109.58,34.64445293]
[1744304006278,34.64445293,109.62,109.58,34.64445293]
[1744304006475,34.64445293,109.62,109.57,29.80654038]
[1744304006721,43.76845293,109.6,109.57,29.80654038]
[1744304007042,45.28885293,109.6,109.57,29.80654038]
[1744304007187,10.6444,109.6,109.57,29.80654038]
[1744304007384,10.6444,109.6,109.57,15.58]
[1744304007905,45.28885293,109.6,109.57,15.58]
[1744304008103,9.124,109.6,109.57,50.22445293]
[1744304008304,9.1207,109.64,109.59,34.64445293]
[1744304008486,31.9225,109.64,109.61,34.64445293]
[1744304008687,31.9225,109.64,109.6,34.64445293]
[1744304009008,66.56695293,109.64,109.58,81.14216157]
[1744304009207,34.64445293,109.63,109.59,34.64445293]
[1744304009504,34.64445293,109.61,109.57,50.22445293]
[1744304009908,34.64445293,109.62,109.57,50.22445293]
[1744304010206,34.64445293,109.61,109.57,50.22445293]
[1744304010395,60.64445293,109.61,109.57,15.58]
[1744304010596,34.64445293,109.59,109.57,15.58]
[1744304010809,45.37405293,109.58,109.57,15.58]
[1744304011011,68.18835293,109.58,109.54,14.28954038]
[1744304011205,34.64445293,109.56,109.54,14.28954038]
[1744304011400,33.5439,109.58,109.54,14.28954038]
[1744304011401,34.64445293,109.55,109.54,14.28954038]
[1744304012107,34.64445293,109.56,109.54,14.28954038]
[1744304012522,34.64445293,109.55,109.54,14.28954038]
[1744304012725,43.77265293,109.55,109.54,14.28954038]
[1744304012942,9.1282,109.55,109.54,0.063]
[1744304013229,69.77265293,109.55,109.54,0.063]
[1744304013430,9.1282,109.55,109.54,0.063]
[1744304014719,43.77265293,109.55,109.54,0.063]
[1744304015042,43.77265293,109.55,109.54,0.0001]
[1744304016829,78.41710586,109.55,109.54,0.0001]
[1744304017136,26.0,109.53,109.52,0.063]
[1744304017337,60.64445293,109.53,109.52,0.063]
[1744304018012,79.57842493,109.53,109.5,0.063]
[1744304018216,34.64445293,109.51,109.5,0.063]
[1744304019019,9.1315,109.51,109.5,0.063]
[1744304019219,43.77595293,109.51,109.5,0.063]
[1744304019941,26.0,109.49,109.48,0.063]
[1744304020241,60.64445293,109.49,109.48,0.063]
[1744304020922,69.77765293,109.49,109.48,0.063]
[1744304021446,88.71162493,109.49,109.48,0.063]
[1744304022751,69.77765293,109.49,109.48,0.063]
[1744304023047,69.77765293,109.49,109.46,0.063]
[1744304023048,29.720272,109.47,109.46,0.063]
[1744304023230,18.933972,109.46,109.45,0.0001]
[1744304023550,60.11982493,109.46,109.45,0.0001]
[1744304023843,94.90643943,109.46,109.44,0.063]
[1744304024145,88.22287786,109.45,109.44,0.063]
[1744304024943,43.78095293,109.45,109.44,0.063]
[1744304026330,9.1361,109.46,109.44,0.063]
[1744304026529,45.43105293,109.47,109.44,0.063]
[1744304026837,9.1352,109.47,109.44,34.70745293]
[1744304027029,64.07585293,109.49,109.44,34.70745293]
[1744304027030,9.134,109.48,109.44,34.70745293]
[1744304027437,9.134,109.48,109.44,43.84465293]
[1744304027851,9.134,109.48,109.44,9.2002]
[1744304028043,9.134,109.48,109.44,43.84465293]
[1744304028240,9.134,109.48,109.45,34.64445293]
[1744304028546,9.1315,109.51,109.47,34.64445293]
[1744304028736,43.77595293,109.51,109.45,134.43626336]
[1744304029053,43.77595293,109.51,109.47,34.64445293]
[1744304029233,60.64445293,109.48,109.44,0.063]
[1744304029438,26.0,109.48,109.44,0.063]
[1744304029752,60.64445293,109.48,109.44,0.063]
[1744304030150,26.0,109.48,109.44,34.70745293]
[1744304030342,34.64445293,109.47,109.44,0.063]
[1744304030541,60.64445293,109.48,109.44,0.063]
[1744304030860,26.0,109.48,109.44,43.84475293]
[1744304031163,35.1342,109.48,109.44,43.84475293]
[1744304031660,47.6807,109.53,109.47,34.64445293]
[1744304031661,26.0,109.5,109.47,34.64445293]
[1744304031953,26.0,109.5,109.45,18.79181043]
[1744304032139,26.0,109.5,109.46,34.64445293]
[1744304032341,9.1307,109.52,109.48,34.64445293]
[1744304032542,43.77515293,109.52,109.48,34.64445293]
[1744304032746,9.1307,109.52,109.49,34.64445293]
[1744304033062,10.6581,109.53,109.49,34.64445293]
[1744304033434,45.30255293,109.53,109.49,34.64445293]
[1744304034133,34.64445293,109.52,109.47,9.1345]
[1744304034333,34.64445293,109.52,109.48,34.64445293]
[1744304034556,34.64445293,109.52,109.47,43.77895293]
[1744304034758,34.64445293,109.5,109.45,99.79181043]
[1744304034961,34.64445293,109.51,109.46,34.64445293]
[1744304035135,34.64445293,109.51,109.47,34.64445293]
[1744304035340,26.0,109.5,109.47,34.64445293]
[1744304035660,45.30255293,109.53,109.47,9.1345]
[1744304035956,34.64445293,109.52,109.48,34.64445293]
[1744304036163,34.64445293,109.51,109.47,53.43626336]
[1744304036461,10.6581,109.53,109.48,34.64445293]
[1744304036462,34.64445293,109.52,109.48,34.64445293]
[1744304036664,45.30255293,109.53,109.49,34.64445293]
[1744304036849,28.8691,109.55,109.5,34.64445293]
[1744304036850,43.77385293,109.54,109.5,34.64445293]
[1744304037164,43.77285293,109.55,109.5,34.64445293]
[1744304037454,9.1284,109.55,109.51,34.64445293]
[1744304037668,43.77285293,109.55,109.5,9.1318]
[1744304037959,34.64445293,109.54,109.49,115.64445293]
[1744304038160,34.64445293,109.54,109.5,34.64445293]
[1744304038468,34.64445293,109.54,109.49,124.77755293]
[1744304038654,34.64445293,109.53,109.49,115.64445293]
[1744304039241,43.77515293,109.52,109.49,81.0]
[1744304039562,43.77475293,109.53,109.49,115.64445293]
[1744304039756,9.1303,109.53,109.49,115.64445293]
[1744304039959,9.1303,109.53,109.49,124.77755293]
[1744304040262,9.1303,109.53,109.49,90.1331]
[1744304040436,43.77475293,109.53,109.49,124.77755293]
[1744304040848,43.77475293,109.53,109.49,43.77755293]
[1744304041067,43.77475293,109.53,109.48,9.27616157]
[1744304041253,43.77475293,109.53,109.48,43.9206145]
[1744304041458,34.64445293,109.51,109.47,108.78424886]
[1744304041657,34.64445293,109.52,109.48,34.64445293]
[1744304041854,34.64445293,109.52,109.47,62.42870179]
[1744304042250,34.64445293,109.52,109.48,34.64445293]
[1744304042870,34.64445293,109.53,109.49,34.64445293]
[1744304043065,34.64445293,109.53,109.48,43.77845293]
[1744304043466,34.64445293,109.52,109.48,34.7866145]
[1744304043685,34.64445293,109.53,109.49,34.64445293]
[1744304044671,22.8227,109.54,109.49,34.64445293]
[1744304044876,9.1282,109.55,109.52,34.64445293]
[1744304045049,34.64445293,109.54,109.47,9.1349]
[1744304045368,34.64445293,109.51,109.47,34.64445293]
[1744304045574,34.64445293,109.49,109.45,6.2059]
[1744304045771,34.64445293,109.48,109.44,124.84435293]
[1744304045952,34.64445293,109.48,109.44,43.84435293]
[1744304046143,34.64445293,109.47,109.44,0.063]
[1744304046343,34.64445293,109.46,109.44,0.063]